Cogmind - Beta 15 @@@ ROGUE MODE // 2025.09.20 @ 04:09:03 Player: Spitalier Result: Destroyed by G-34 Mercenary with Small Laser Performance ------------- Evolutions (1) 500 Regions Visited (4) 800 Robots Destroyed (3) 15 Value Destroyed (84) 84 Prototype IDs (0) 0 Alien Tech Used (0) 0 Bonus (200) 200 TOTAL SCORE: 1599 Bonus ------- Pacifist 200 Cogmind --------- Core Integrity 0/400 Matter 225/300 Energy 99/100 System Corruption 1% Temperature Cool (6) Movement Core (50) Location -9/Storage Parts ------- > --- POWER (2) -------- (None) > --- PROPULSION (3) --- (None) > --- UTILITY (2) ------ (None) > --- WEAPON (2) ------- (None) > --- INVENTORY (5) ---- Light Treads Drone Bay (2/2) Drone Bay (2/2) Drone Bay (2/2) Datajack Peak State ------------ > --- POWER ------------ Light Ion Engine Light Ion Engine > --- PROPULSION ------- Aluminum Leg Aluminum Leg > --- UTILITY ---------- High-capacity Battery Drone Bay > --- WEAPON ----------- Small Laser Rocket Launcher > --- INVENTORY -------- Light Treads Drone Bay Drone Bay Drone Bay Datajack [Rating: 14] Favorites ----------- Power Light Ion Engine Engine Light Ion Engine Propulsion Aluminum Leg Leg Aluminum Leg Utility High-capacity Battery Device Drone Bay Storage High-capacity Battery Weapon Small Laser Energy Gun Small Laser Launcher Rocket Launcher Build | -11 -10 -10 -9 -9 ------- Run | Yrd Mat Min Mat Sto Slots Evolved 2 | . . . 2 . Power 1 | . . . 1 . Propulsion 1 | . . . 1 . Utility . | . . . . . Weapon . | . . . . . Parts Attached 11 | 6 1 . 1 3 Power 2 | 1 . . 1 . Engine 2 | 1 . . 1 . Core . | . . . . . Reactor . | . . . . . Propulsion 3 | 2 . . . 1 Treads . | . . . . . Leg 3 | 2 . . . 1 Wheel . | . . . . . Hover . | . . . . . Flight . | . . . . . Utility 3 | 1 1 . . 1 Device 1 | . . . . 1 Storage 2 | 1 1 . . . Processor . | . . . . . Hackware . | . . . . . Protection . | . . . . . Artifact . | . . . . . Weapon 3 | 2 . . . 1 Energy Gun 2 | 2 . . . . Energy Cannon . | . . . . . Ballistic Gun . | . . . . . Ballistic Cannon . | . . . . . Launcher 1 | . . . . 1 Special Weapon . | . . . . . Impact Weapon . | . . . . . Slashing Weapon . | . . . . . Piercing Weapon . | . . . . . Special Melee Weapon . | . . . . . Unidentified Prototypes . | . . . . . Parts Lost 7 | . . . . 7 Power 2 | . . . . 2 Propulsion 2 | . . . . 2 Utility 1 | . . . . 1 Weapon 2 | . . . . 2 Highest Loss Streak 7 | . . . . 7 To Critical Strikes . | . . . . . Average Backups 5 | 2 6 6 6 5 Power . | . 1 1 . . Propulsion 2 | 1 4 4 4 1 Utility . | . . . . 2 Weapon . | . 1 1 2 . Tool/Special . | . . . . . Unused Backups 10 | . . . . 10 Power . | . . . . . Propulsion 4 | . . . . 4 Utility 3 | . . . . 3 Weapon 2 | . . . . 2 Tool/Special 1 | . . . . 1 Average Slot Usage (%) 74 | . 94 100 88 55 Engine 16 | . 14 14 22 13 Leg 20 | . 28 28 22 15 Device 2 | . . . . 4 Storage 17 | . 22 28 22 11 Energy Gun 17 | . 28 28 22 8 Peak Build Rating 14 | 6 7 7 8 14 Average Rating 7 | 4 6 7 8 7 On Entrance 5 | . 6 7 7 8 Naked Turns 35 | . . . . 35 Heaviest Build 21 | 10 14 14 17 21 Greatest Support 20 | 20 20 20 20 20 Greatest Overweight (x) 1 | . . . . 1 Average Overweight (x) . | . . . . . Largest Inventory Capacity 8 | 8 8 8 8 8 Average Capacity 6 | 7 8 8 8 5 Most Carried 7 | 6 6 7 7 7 Average Carried 5 | 3 6 6 6 5 Final Capacity 8 | 8 8 8 8 5 Final Carried 7 | 6 6 7 7 5 Class Distribution -------------------- 100% | Mutant Dominant Class ---------------- Mutant | -10/Materials Mutant | -10/Mines Mutant | -9/Materials Mutant | -9/Storage Resources | -11 -10 -10 -9 -9 ----------- Run | Yrd Mat Min Mat Sto Matter Collected 216 | 212 . . . 4 Remotely . | . . . . . Salvage Created 48 | . . . . 48 Parts 6 | . . . . 6 Haulers Intercepted . | . . . . . Recyclers Shooed . | . . . . . Parts Field Recycled . | . . . . . Retrieved Matter . | . . . . . Parts Self-Destructed . | . . . . . Prevented . | . . . . . Kills | -11 -10 -10 -9 -9 ------- Run | Yrd Mat Min Mat Sto Combat Hostiles Destroyed 2 | . . . . 2 AOE 2 | . . . . 2 Classes Destroyed 2 | . . . . 2 Watcher 1 | . . . . 1 Grunt 2 | . . . . 2 Best Kill Streak 2 | . . . . 2 Combat Bots Only 2 | . . . . 2 Max Kills in Single Turn 1 | . . . . 1 Gunslinging . | . . . . . Exploded 1 | . . . . 1 Melee . | . . . . . Uniques/NPCs Destroyed . | . . . . . Combat | -11 -10 -10 -9 -9 -------- Run | Yrd Mat Min Mat Sto Hostile Shots Fired 103 | . . . 2 101 Missed 29 | . . . 1 28 Hits 74 | . . . 1 73 Projectile 74 | . . . 1 73 Critical Strikes 1 | . . . . 1 Damage Taken 971 | . . . 35 936 Core 405 | . . . 17 388 Absorbed by Shields . | . . . . . Core Remaining (%) 100 | 100 . 100 . . Volleys Fired 13 | . . . . 13 Largest 2 | . . . . 2 Hottest 73 | . . . . 73 Shots Fired 18 | . . . . 18 Gun 13 | . . . . 13 Cannon . | . . . . . Launcher 5 | . . . . 5 Special . | . . . . . Kinetic . | . . . . . Thermal 13 | . . . . 13 Explosive 5 | . . . . 5 Electromagnetic . | . . . . . Robot Hit Streak 6 | . . . . 6 Robot Miss Streak 1 | . . . . 1 Penetration Max . | . . . . . Secondary Targets . | . . . . . Shots Hit Robots 14 | . . . . 14 Core Hits 9 | . . . . 9 Critical Kills . | . . . . . Critical Parts Destroyed . | . . . . . Critical Strikes . | . . . . . Melee Attacks . | . . . . . Impact . | . . . . . Slashing . | . . . . . Piercing . | . . . . . Sneak Attacks . | . . . . . Combat Hostiles . | . . . . . Follow-up Attacks . | . . . . . Damage Inflicted 295 | . . . . 295 Guns 109 | . . . . 109 Cannons . | . . . . . Explosions 163 | . . . . 163 Melee . | . . . . . Ramming 23 | . . . . 23 Kinetic . | . . . . . Thermal 109 | . . . . 109 Explosive 163 | . . . . 163 Electromagnetic . | . . . . . Impact . | . . . . . Slashing . | . . . . . Piercing . | . . . . . Highest Corruption 1 | . . . . 1 Average Corruption 1 | . . . . 1 Corruption Purged . | . . . . . Corruption Blocked . | . . . . . Overload Shots . | . . . . . Overflow Damage . | . . . . . Projectiles . | . . . . . Explosions . | . . . . . Melee . | . . . . . Knockbacks . | . . . . . Impact . | . . . . . Kinetic . | . . . . . Secondary . | . . . . . Self-Inflicted Damage 62 | . . . . 62 Shots 3 | . . . . 3 Rammed 2 | . . . . 2 Targets Rammed 14 | . . . . 14 Kicked 12 | . . . . 12 Crushed . | . . . . . Highest Temperature 220 | . . . . 220 Average Temperature 86 | . . . . 86 Received Heat Transfer 438 | . . . 9 429 Siege Activations . | . . . . . Martial Activations . | . . . . . Shielding Activations . | . . . . . Robots Disrupted . | . . . . . Combat Hostiles . | . . . . . Robots Corrupted . | . . . . . Combat Hostiles . | . . . . . Parts Fried . | . . . . . Impact Corruptions . | . . . . . Robots Melted . | . . . . . Combat Hostiles . | . . . . . Parts Melted . | . . . . . Heat Transferred 250 | . . . . 250 Parts Sabotaged . | . . . . . Parts Stolen . | . . . . . Parts Stripped . | . . . . . Power Chain Reactions . | . . . . . Alert | -11 -10 -10 -9 -9 ------- Run | Yrd Mat Min Mat Sto Maximum Alert Level . | . . . . . Low Security (%) 100 | 100 100 100 100 100 Level 1 . | . . . . . Level 2 . | . . . . . Level 3 . | . . . . . Level 4 . | . . . . . Level 5 . | . . . . . High Security . | . . . . . Max Security . | . . . . . Peak Influence 79 | . . . . 79 Initial . | . . . . . Average 4 | . . . . 9 Influence Increases 130 | . . . . 130 Destroy 0b10 Robot/C 40 | . . . . 40 Destroy 0b10 Robot/NC 5 | . . . . 5 Destroy Leader 12 | . . . . 12 Successful Hack 4 | . . . . 4 Destroy Structure 39 | . . . . 39 Lose Combat Pursuer 30 | . . . . 30 Influence Decreases 110 | . . . . 110 Time Decay 51 | . . . . 51 Lost Part 59 | . . . . 59 Squads Dispatched 2 | . . . . 2 Investigation . | . . . . . Extermination . | . . . . . Reinforcement 2 | . . . . 2 Assault . | . . . . . Garrison . | . . . . . Intercept . | . . . . . Searches Triggered . | . . . . . Construction Impeded . | . . . . . Haulers Reinforced . | . . . . . Active Scanning Responses . | . . . . . Cargo Convoy Interrupts . | . . . . . Stealth | -11 -10 -10 -9 -9 --------- Run | Yrd Mat Min Mat Sto Distress Signals 1 | . . . . 1 Communications Jammed . | . . . . . Distress Signals . | . . . . . Times Spotted 21 | . 1 . 3 17 Peak Tracking Total 11 | . 1 . 2 11 Tactical Retreats 1 | . . . . 1 Traps | -11 -10 -10 -9 -9 ------- Run | Yrd Mat Min Mat Sto Traps Triggered 2 | . . . 1 1 Indirectly . | . . . . . Trap Hack Attempts . | . . . . . Triggered . | . . . . . Disarmed . | . . . . . Reprogrammed . | . . . . . Reused . | . . . . . Traps Extracted . | . . . . . Installed . | . . . . . Triggered . | . . . . . Machines | -11 -10 -10 -9 -9 ---------- Run | Yrd Mat Min Mat Sto Machines Disabled . | . . . . . Max in Single Turn . | . . . . . Machines Repaired . | . . . . . Machines Dismantled . | . . . . . Machines Sabotaged . | . . . . . Overloaded Fab Kills . | . . . . . Hacking | -11 -10 -10 -9 -9 --------- Run | Yrd Mat Min Mat Sto Machines Accessed 3 | . . . 1 2 Terminals 3 | . . . 1 2 Fabricators . | . . . . . Repair Stations . | . . . . . Recycling Units . | . . . . . Scanalyzers . | . . . . . Garrison Access . | . . . . . Total Hacks 7 | . . . 2 5 Successful 5 | . . . 1 4 Failed 1 | . . . 1 . Catastrophic . | . . . . . Database Lockouts 1 | . . . . 1 Manual 6 | . . . . 6 Terminals 7 | . . . 2 5 Fabricators . | . . . . . Repair Stations . | . . . . . Recycling Units . | . . . . . Scanalyzers . | . . . . . Garrison Access . | . . . . . Terminal Hacks 5 | . . . 1 4 Record 3 | . . . . 3 Open Door 1 | . . . . 1 Locate Traps 1 | . . . 1 . Fabricator Hacks . | . . . . . Repair Station Hacks . | . . . . . Recycling Unit Hacks . | . . . . . Scanalyzer . | . . . . . Garrison Access Hacks . | . . . . . Unauthorized Hacks . | . . . . . Terminals . | . . . . . Fabricators . | . . . . . Repair Stations . | . . . . . Recycling Units . | . . . . . Scanalyzers . | . . . . . Garrison Access . | . . . . . Data Cores Recovered . | . . . . . Used . | . . . . . Hacking Detections 2 | . . . 1 1 Full Trace Events . | . . . . . Feedback Events . | . . . . . Feedback Blocked . | . . . . . Robot Schematics Acquired . | . . . . . Robots Built . | . . . . . Authchips . | . . . . . Time . | . . . . . Total Robot Build Rating . | . . . . . Part Schematics Acquired . | . . . . . Parts Built . | . . . . . Authchips . | . . . . . Time . | . . . . . Total Part Build Rating . | . . . . . Parts Repaired . | . . . . . Time . | . . . . . Parts Recycled . | . . . . . Recycled Matter . | . . . . . Retrieved Matter . | . . . . . Retrieved Components . | . . . . . Parts Scanalyzed . | . . . . . Part Schematics Acquired . | . . . . . Parts Damaged . | . . . . . Bothacking | -11 -10 -10 -9 -9 ------------ Run | Yrd Mat Min Mat Sto Used RIF Installer . | . . . . . Robots Hacked . | . . . . . Non-combat . | . . . . . Combat . | . . . . . Robot Hacks Applied . | . . . . . Relay Couplers Released . | . . . . . Fabnet Peak Effective % . | . . . . . Robots Rewired . | . . . . . Allies Hacked . | . . . . . Hacks Repelled . | . . . . . Allies | -11 -10 -10 -9 -9 -------- Run | Yrd Mat Min Mat Sto Total Allies 1 | . . 1 . . Largest Group 1 | . . 1 . . Highest-Rated Group 31 | . . 31 . . Highest-Rated Ally 31 | . . 31 . . Total Orders . | . . . . . Ally Attacks . | . . . . . Total Damage . | . . . . . Kills . | . . . . . Allies Corrupted . | . . . . . Allies Melted . | . . . . . Intel | -11 -10 -10 -9 -9 ------- Run | Yrd Mat Min Mat Sto Active Infowar (turns) . | . . . . . Robot Analysis Total . | . . . . . Derelict Logs Recovered . | . . . . . Drone Launches . | . . . . . Drone Recoveries . | . . . . . Exploration | -11 -10 -10 -9 -9 ------------- Run | Yrd Mat Min Mat Sto Turns Passed 615 | 74 102 22 150 267 Spaces Moved 445 | 51 84 14 124 172 Core 61 | 2 . . . 59 Treads . | . . . . . Legs 384 | 49 84 14 124 113 Wheels . | . . . . . Hover . | . . . . . Flight . | . . . . . Fastest Speed 50 | 50 120 120 120 50 Average Speed 114 | 117 120 120 120 107 Slowest Speed 190 | 120 120 120 120 190 Overloaded Moves . | . . . . . Propulsion Burnouts . | . . . . . Robots Hopped . | . . . . . Potential Cave-ins . | . . . . . Cave-ins Triggered . | . . . . . Exploration Rate (%) 14 | 3 19 7 11 34 Regions Visited 4 Branch Regions 2 Pre-discovered Areas 1 | . . . . 1 Known Exits Taken . | . . . . . Unknown Exits Taken 4 | 1 1 1 1 . Scrap Searched . | . . . . . Spaces Dug . | . . . . . Terrain Destroyed 46 | . . . . 46 Melee . | . . . . . Projectile . | . . . . . AOE 46 | . . . . 46 Terrain Rammed . | . . . . . Walls Destroyed . | . . . . . Machines Disabled . | . . . . . Actions | -11 -10 -10 -9 -9 --------- Run | Yrd Mat Min Mat Sto Total 525 | 62 84 19 125 235 Wait 30 | . . 5 . 25 Move 441 | 50 83 13 123 172 Hop . | . . . . . Pick Up 11 | 6 . 1 1 3 Fast Attach 10 | 6 1 . . 3 Attach 1 | . . . 1 . Detach 1 | . . . . 1 Swap . | . . . . . Drop 4 | . . . . 4 Fire 13 | . . . . 13 Melee . | . . . . . Ram 2 | . . . . 2 Kick 12 | . . . . 12 Crush . | . . . . . Escape Stasis . | . . . . . Rewire . | . . . . . Trap . | . . . . . Miscellaneous . | . . . . . Route ------- -11/Scrapyard -10/Materials (discovered 2 exits: [*Min x2]) -10/Mines -9/Materials -9/Storage History --------- Turn | Location | Event 38 | -11/Scrapyard | Discovered new exit (range 16) 75 | -11/Scrapyard | Entered Materials 76 | -10/Materials | Met a group of wandering Federalists 144 | -10/Materials | Discovered new exit (range 7) 161 | -10/Materials | Discovered new exit (range 12) 177 | -10/Materials | Entered Mines 177 | -10/Mines | Accompanied by 1 ally 180 | -10/Mines | Received a Mining Laser from a helpful Derelict 185 | -10/Mines | Discovered new exit (range 10) 199 | -10/Mines | Entered Materials 199 | -9/Materials | Evolved 2 slots: Power x1, Propulsion x1 241 | -9/Materials | Discovered new exit (range 11) 315 | -9/Materials | Build established: Mutant 349 | -9/Materials | Entered Storage 357 | -9/Storage | Learned location of Armory (-4) 377 | -9/Storage | Central database locked down 540 | -9/Storage | Core integrity fell below 50% 555 | -9/Storage | Core integrity fell below 20% 562 | -9/Storage | Lost 7 parts (2p2n1u2w) 581 | -9/Storage | Released all parts (2) 616 | -9/Storage | Destroyed by G-34 Mercenary with Small Laser Last Messages --------------- 00521_ K-01 Serf collects debris. 00522_ M-13 Machinist repairs Y-45 Defender. 00522_ Kicked G-34 Mercenary. 00525_ K-01 Serf collects debris. 00525_ Lgt. Ion Engine destroyed. 00526_ Kicked G-34 Mercenary. 00528_ K-01 Serf collects debris. 00528_ Kicked G-34 Mercenary. 00531_ K-01 Serf collects debris. 00531_ Aluminum Leg destroyed. 00533_ The unstable cave ceiling collapses. 00534_ K-01 Serf collects debris. 00559_ Slammed into K-01 Serf. 00561_ Acquired Aluminum Leg. 00581_ Released Aluminum Leg. 00581_ Released Hcp. Battery. 00585_ R-06 Scavenger collects Aluminum Leg. 00593_ Triggered Shock Trap. 00593_ The floor emits a surge of raw power. 00593_ System corrupted (+1). Map ----- +----------------------------------------------------+ | | | | | | | | | | | | | | | | | | | ?????????????????????????????????????????????????? | | ?????????????????????????????????????????????????? | | ??????????????????????????????########???????????? | | ??????????????????????????????#! #T##?????#####? | | ??????????????????????????????#=[[!|= #?????# #? | | ??????????#########???????????#!!!=# #?????# #? | | ?????????? #???????????###### #?????# #? | | ?????????# """ #???#########T#####+#########+## | | ????????? """ #???# | | ?????????# """ ##### | | ?????????# + k ! | | ?????????# """ #####Y w################# #### | | ?????????# """ #???# # ????????????# #??? | | ?????????# """ #???# # "??????####### #??# | | ?????????? #???# g# "??????# # ###" | | ??????????####/######## # "??????# # # | | ????????????# @/ """""" # ! # # | | ????????????# # # # # | | ????????? + g b g # # ! # # | | ?????????? ## gg # + / | | ????????????# ########### # # | | ????????????# ########+##?????????# ### # | | ????????????# ????????? ??????????# ### # | | ????????????# ??????????""??????????# # # # | | ????????????????????????""?????????## ### # " | | ??????????????????????????????????## ### # "G | | ???????????????????????????????#### ####% %## " | | ???????????????????????????????#**" # #? # #*## | | ???????????????????????????????#** #*##### ## | | ???????????????????????????????#**" +! # | | ???????????????????????????????####T####### # | | ??????????????????????????????????###???### # | | ????????????????????????????????????????# # " | | ????????????????????????????????????????# # ## # | | ????????????????????????????????????????# # #### | | ????????????????????????????????????????# # #??? | | ????????????????????????????????????????## ##??? | | ?????????????????????????????????????????## #???? | | ????????????????????????????????????????? ???? | | ????????????????????????????????????????? ???? | | ???????????????????????????????????????? ???? | +----------------------------------------------------+ Best States ------------- Heat Dissipation 28 Energy Generation 15 Energy Capacity 400 Matter Stores 252 Matter Capacity 300 Sight Range 16 Terrain Scan Density 10 Evasion (%) 55 Item Schematics ----------------- None Robot Schematics ------------------ None Fabricated ------------ Nothing Repaired ---------- Nothing Alien Tech Used ----------------- None Achievements -------------- None Challenges ------------ None Game ------ Seed WeldingTargetPick Manual? 0 Play Time 00:11:58 Cumulative 10.8 hours Start 2025.09.20 @ 03:56:53 End 2025.09.20 @ 04:09:03 Sessions 1 Manual Loads 0 Difficulty Rogue Special Mode None Game No. 17 Rogue 17 Adventurer 0 Explorer 0 Win Type - Total 0 Types 0/0/0/0/0/0/0/0/0/0 Lore% 6 Gallery% 12 Achievement% 14 Wizard Run 0 Options --------- Layout 1 ASCII 0 Keyboard 0 Movement Numpad Keybinds 0 Fullscreen 1 Font 32/SmallcapsGlow Map View 50x35 Zoom Use 0% Tactical HUD 1 Map Filters NONE Filters NONE Steam 1 RUN: c652f558-7b0a-4f58-9d2a-4fd7d25320bb